fUSD/lending_fUSD_20240216
["ID","MTS","AMOUNT","RATE_DAILY","PERIOD"]
[314207659,1708083043175,-151.26561724,0.00040409,8]
[314207660,1708083043184,-5000.0,0.00040427,20]
[314207661,1708083043194,-1009.7770398,0.00040427,20]
[314207662,1708083043203,-153.0,0.00040451,7]
[314207663,1708083043212,-151.0216,0.00040498,25]
[314207664,1708083043222,-205.53,0.000405,7]
[314207665,1708083043231,-200.0,0.000405,30]
[314207666,1708083043240,-151.0,0.00040507,7]
[314207667,1708083043249,-4772.58988086,0.00040526,14]
[314207668,1708083043258,-337.23,0.00040547,2]
[314207669,1708083043267,-152.0,0.00040549,3]
[314207670,1708083043276,-153.0,0.00040588,7]
[314207671,1708083043285,-321.0,0.0004059,2]
[314207672,1708083043294,-151.0216,0.00040598,24]
[314207673,1708083043303,-153.95,0.000406,4]
[314207674,1708083043312,-153.95,0.000406,4]
[314207675,1708083043322,-153.95,0.000406,4]
[314207676,1708083043331,-696.65,0.000406,4]
[314207677,1708083043341,-696.65,0.000406,4]
[314207678,1708083043350,-696.65,0.000406,4]
[314207679,1708083043359,-696.65,0.000406,4]
[314207680,1708083043368,-696.65,0.000406,4]
[314207681,1708083043378,-696.65,0.000406,4]
[314207682,1708083043387,-696.65,0.000406,4]
[314207683,1708083043398,-696.65,0.000406,4]
[314207684,1708083043407,-696.65,0.000406,4]
[314207685,1708083043417,-696.65,0.000406,4]
[314207686,1708083043426,-696.65,0.000406,4]
[314207687,1708083043435,-696.65,0.000406,4]
[314207688,1708083043445,-696.65,0.000406,4]
[314207689,1708083043454,-696.65,0.000406,4]
[314207690,1708083043463,-696.65,0.000406,4]
[314207691,1708083043472,-696.65,0.000406,4]
[314207692,1708083043481,-696.65,0.000406,4]
[314207693,1708083043491,-696.65,0.000406,4]
[314207694,1708083043500,-696.65,0.000406,4]
[314207695,1708083043510,-696.65,0.000406,4]
[314207696,1708083043519,-167.67,0.00040631,2]
[314207697,1708083043528,-200.0,0.00040637,15]
[314207698,1708083043537,-151.0,0.00040644,7]
[314207699,1708083043547,-177.38,0.00040644,2]
[314207700,1708083043557,-151.26561724,0.00040668,9]
[314207701,1708083043567,-150.0,0.00040672,2]
[314207702,1708083043576,-150.0,0.00040672,2]
[314207703,1708083043585,-150.0,0.00040672,2]
[314207704,1708083043595,-150.0,0.00040672,2]
[314207705,1708083043608,-150.0,0.00040672,2]
[314207706,1708083043617,-251.52245,0.00040672,2]
[314207707,1708083043626,-154.13603138,0.00040674,2]
[314207708,1708083043636,-150.0,0.00040679,3]
[314207709,1708083043645,-166.3355875,0.00040679,3]
[314207710,1708083043654,-40105.77494217,0.0004068,2]
[314207711,1708083043663,-112984.80597323,0.0004068,2]
[314207712,1708083043673,-267.19689819,0.00040682,2]
[314207713,1708083043682,-200.0,0.00040682,2]
[314207714,1708083043691,-151.0216,0.00040698,25]
[314207715,1708083043702,-326.086627,0.00040716,2]
[314207716,1708083043710,-195.651975,0.00040716,2]
[314207717,1708083043720,-641.694204,0.00040716,2]
[314207718,1708083043730,-1579.877353,0.00040716,2]
[314207719,1708083043740,-206.0,0.00040718,18]
[314207720,1708083043749,-200.0,0.00040753,15]
[314207721,1708083043760,-800.0,0.00040753,15]
[314207722,1708083043769,-200.0,0.00040753,10]
[314207723,1708083043778,-200.0,0.00040753,20]
[314207724,1708083043788,-200.0,0.00040753,20]
[314207725,1708083043797,-500.0,0.00040753,20]
[314207726,1708083043806,-150.88,0.00040753,2]
[314207727,1708083043817,-800.0,0.00040754,15]
[314207728,1708083043827,-800.0,0.00040754,15]
[314207729,1708083043836,-200.0,0.00040754,20]
[314207730,1708083043846,-200.0,0.00040754,20]
[314207731,1708083043856,-800.0,0.00040754,15]
[314207732,1708083043865,-800.0,0.00040754,15]
[314207733,1708083043874,-800.0,0.00040754,15]
[314207734,1708083043885,-200.0,0.00040754,20]
[314207735,1708083043894,-500.0,0.00040754,20]
[314207736,1708083043903,-151.0,0.00040781,7]
[314207737,1708083043913,-206.0,0.0004079,2]
[314207738,1708083043923,-151.0216,0.00040798,25]
[314207739,1708083043933,-27208.77302281,0.000408,30]
[314207740,1708083043944,-167.05,0.00040818,2]
[314207741,1708083043954,-294.03885956,0.00040856,33]
[314207742,1708083043963,-151.0,0.00040866,4]
[314207743,1708083043973,-174.35,0.00040868,2]
[314207744,1708083043981,-1000.0,0.00040878,2]
[314207745,1708083043991,-1000.0,0.00040878,2]
[314207746,1708083044000,-1000.0,0.00040878,2]
[314207747,1708083044011,-1000.0,0.00040878,2]
[314207748,1708083044020,-1000.0,0.00040878,2]
[314207749,1708083044029,-1000.0,0.00040878,2]
[314207750,1708083044038,-1000.0,0.00040878,2]
[314207751,1708083044047,-1000.0,0.00040878,2]
[314207752,1708083044057,-1000.0,0.00040878,2]
[314207753,1708083044066,-1000.0,0.00040878,2]
[314207754,1708083044076,-1000.0,0.00040878,2]
[314207755,1708083044085,-1000.0,0.00040878,2]
[314207756,1708083044094,-1000.0,0.00040878,2]
[314207757,1708083044102,-1000.0,0.00040878,2]
[314207758,1708083044111,-1000.0,0.00040878,2]
[314207759,1708083044120,-1000.0,0.00040878,2]
[314207760,1708083044129,-1000.0,0.00040878,2]
[314207761,1708083044139,-1000.0,0.00040878,2]
[314207762,1708083044148,-1000.0,0.00040878,2]
[314207763,1708083044158,-1000.0,0.00040878,2]
[314207764,1708083044168,-1000.0,0.00040878,2]
[314207765,1708083044177,-869.0007,0.00040878,2]
[314207766,1708083044187,-151.0216,0.00040898,24]
[314207767,1708083044196,-5020.34533613,0.000409,2]
[314207768,1708083044205,-5020.34533599,0.000409,2]
[314207769,1708083044214,-5020.34533599,0.000409,2]
[314207770,1708083044222,-5020.34533599,0.000409,2]
[314207771,1708083044231,-5020.34533599,0.000409,2]
[314207772,1708083044240,-5020.34533599,0.000409,2]
[314207773,1708083044249,-5020.34533599,0.000409,2]
[314207774,1708083044258,-5020.34533599,0.000409,2]
[314207775,1708083044267,-5020.34533599,0.000409,2]
[314207776,1708083044275,-5020.34533599,0.000409,2]
[314207777,1708083044284,-5020.34533599,0.000409,2]
[314207778,1708083044294,-5020.34533599,0.000409,2]
[314207779,1708083044303,-5020.34533599,0.000409,2]
[314207780,1708083044312,-5020.34533599,0.000409,2]
[314207781,1708083044322,-5020.34533599,0.000409,2]
[314207782,1708083044331,-5020.34533599,0.000409,2]
[314207783,1708083044340,-5020.34533599,0.000409,2]
[314207784,1708083044349,-5020.34533599,0.000409,2]
[314207785,1708083044358,-5020.34533599,0.000409,2]
[314207786,1708083044368,-5020.34533599,0.000409,2]
[314207787,1708083044377,-1500.0,0.00040906,2]
[314207788,1708083044386,-151.0,0.00040918,7]
[314207789,1708083044396,-151.26561724,0.00040926,10]
[314207790,1708083044405,-4772.58988086,0.00040949,15]
[314207791,1708083044414,-450.0,0.0004099,2]
[314207792,1708083044424,-151.0216,0.00040998,24]
[314207793,1708083044433,-157.18207369,0.00040999,2]
[314207794,1708083044443,-205.53,0.00041,7]
[314207795,1708083044452,-264.576864,0.00041042,2]
[314207796,1708083044463,-151.0,0.00041055,7]
[314207797,1708083044472,-4556.148267,0.00041072,2]
[314207798,1708083044481,-1392.3893479,0.00041072,2]
[314207799,1708083044490,-12240.0871418,0.00041072,2]
[314207800,1708083044499,-8164.1661538,0.00041072,2]
[314207801,1708083044600,-1522.2845585,0.00041072,2]
[314207802,1708083044623,-166795.8047422,0.00041072,2]
[314207803,1708083044632,-150.01,0.00041082,2]
[314207804,1708083044642,-3316.80182207,0.00041082,2]
[314207805,1708083044652,-320.83544849,0.00041084,4]
[314207806,1708083044661,-200.0,0.00041088,2]
[314207807,1708083044670,-20000.0,0.00041088,2]
[314207808,1708083044680,-500.0,0.00041095,30]
[314207809,1708083044690,-523.79134778,0.00041095,15]
[314207810,1708083044699,-551.55411845,0.00041095,9]
[314207811,1708083044709,-532.22106102,0.00041095,30]
[314207812,1708083044718,-500.0,0.00041095,30]
[314207813,1708083044727,-500.0,0.00041095,30]
[314207814,1708083044736,-500.0,0.00041095,30]
[314207815,1708083044745,-500.0,0.00041095,30]
[314207816,1708083044754,-500.0,0.00041095,30]
[314207817,1708083044763,-500.0,0.00041095,30]
[314207818,1708083044773,-500.0,0.00041095,30]
[314207819,1708083044782,-239.70892614,0.00041095,30]
[314207820,1708083044792,-500.0,0.00041095,30]
[314207821,1708083044801,-500.0,0.00041095,30]
[314207822,1708083044810,-529.35194752,0.00041095,30]
[314207823,1708083044820,-513.5583782,0.00041095,30]
[314207824,1708083044829,-500.0,0.00041095,30]
[314207825,1708083044837,-500.0,0.00041095,30]
[314207826,1708083044846,-517.91800051,0.00041095,30]
[314207827,1708083044855,-506.95688496,0.00041095,30]
[314207828,1708083044865,-500.0,0.00041095,30]
[314207829,1708083044874,-516.47329608,0.00041095,30]
[314207830,1708083044883,-500.0,0.00041095,30]
[314207831,1708083044893,-500.0,0.00041095,30]
[314207832,1708083044902,-317.8069897,0.00041095,30]
[314207833,1708083044912,-501.67272739,0.00041095,30]
[314207834,1708083044921,-533.4493114,0.00041095,30]
[314207835,1708083044930,-512.9336614,0.00041095,7]
[314207836,1708083044942,-509.05014884,0.00041095,30]
[314207837,1708083044951,-418.71516764,0.00041095,30]
[314207838,1708083044960,-503.25599662,0.00041095,7]
[314207839,1708083044970,-172.04317366,0.00041095,30]
[314207840,1708083044979,-512.85661278,0.00041095,30]
[314207841,1708083044989,-500.0,0.00041095,30]
[314207842,1708083044998,-500.45254752,0.00041095,30]
[314207843,1708083045008,-500.0,0.00041095,30]
[314207844,1708083045017,-507.51076978,0.00041095,30]
[314207845,1708083045026,-510.77737129,0.00041095,30]
[314207846,1708083045036,-500.0,0.00041095,30]
[314207847,1708083045045,-500.0,0.00041095,30]
[314207848,1708083045055,-500.0,0.00041095,30]
[314207849,1708083045064,-500.0,0.00041095,30]
[314207850,1708083045075,-500.0,0.00041095,30]
[314207851,1708083045085,-522.5600601,0.00041095,30]
[314207852,1708083045094,-514.8009809,0.00041095,30]
[314207853,1708083045103,-156.68891002,0.00041095,30]
[314207854,1708083045283,-343.31108998,0.00041095,30]
[314207855,1708083045293,-500.0,0.00041095,30]
[314207856,1708083045302,-521.09391331,0.00041095,30]
[314207857,1708083045312,-515.78035152,0.00041095,30]
[314207858,1708083045322,-546.12775513,0.00041095,30]
[314207859,1708083045331,-500.0,0.00041095,30]
[314207860,1708083045340,-500.0,0.00041095,30]
[314207861,1708083045350,-500.0,0.00041095,30]
[314207862,1708083045359,-1000.0,0.00041095,7]
[314207863,1708083045368,-1000.0,0.00041095,30]
[314207864,1708083045379,-506.99824409,0.00041095,30]
[314207865,1708083045388,-515.58707261,0.00041095,30]
[314207866,1708083045398,-500.0,0.00041095,30]
[314207867,1708083045407,-505.20472239,0.00041095,30]
[314207868,1708083045416,-500.0,0.00041095,30]
[314207869,1708083045426,-263.39992226,0.00041095,30]
[314207870,1708083045434,-505.52272167,0.00041095,30]
[314207871,1708083045444,-524.50924556,0.00041095,30]
[314207873,1708083045453,-533.99508549,0.00041095,30]
[314207874,1708083045462,-479.91582489,0.00041095,30]
[314207875,1708083045471,-500.0,0.00041095,30]
[314207876,1708083045480,-520.24606305,0.00041095,30]
[314207877,1708083045489,-500.0,0.00041095,30]
[314207878,1708083045498,-552.22215249,0.00041095,30]
[314207880,1708083045507,-523.3114251,0.00041095,30]
[314207882,1708083045517,-491.30355256,0.00041095,30]
[314207883,1708083045526,-542.68080216,0.00041095,30]
[314207885,1708083045535,-500.0,0.00041095,30]
[314207886,1708083045544,-500.0,0.00041095,30]
[314207887,1708083045553,-514.58859824,0.00041095,30]
[314207889,1708083045563,-489.55662512,0.00041095,30]
[314207890,1708083045572,-500.0,0.00041095,30]
[314207891,1708083045581,-510.51641097,0.00041095,30]
[314207892,1708083045592,-177.34687388,0.00041095,30]
[314207893,1708083045606,-527.17091595,0.00041095,30]
[314207894,1708083045615,-503.94935546,0.00041095,30]
[314207896,1708083045624,-531.14975627,0.00041095,30]
[314207898,1708083045635,-511.07582744,0.00041095,30]
[314207899,1708083045644,-512.15991006,0.00041095,30]
[314207900,1708083045652,-502.99659244,0.00041095,30]
[314207901,1708083045661,-315.51308005,0.00041095,30]
[314207902,1708083045670,-613.92552126,0.00041095,30]
[314207903,1708083045680,-507.9332203,0.00041095,30]
[314207904,1708083045690,-526.43208249,0.00041095,30]
[314207905,1708083045699,-509.5850002,0.00041095,30]
[314207906,1708083045707,-533.56,0.00041095,30]
[314207907,1708083045716,-503.54436677,0.00041095,30]
[314207908,1708083045726,-522.06854496,0.00041095,30]
[314207909,1708083045735,-507.24076654,0.00041095,30]
[314207910,1708083045743,-518.80780902,0.00041095,30]
[314207911,1708083045752,-500.0,0.00041095,30]
[314207912,1708083045761,-500.0,0.00041095,30]
[314207913,1708083045770,-502.99679477,0.00041095,30]
[314207914,1708083045779,-627.65503287,0.00041095,30]
[314207915,1708083045788,-517.31953854,0.00041095,30]
[314207916,1708083045797,-814.85,0.00041095,30]
[314207917,1708083045806,-522.57094919,0.00041095,30]
[314207918,1708083045815,-576.89777902,0.00041095,30]
[314207919,1708083045824,-522.72113899,0.00041095,30]
[314207920,1708083045833,-530.82715064,0.00041095,30]
[314207921,1708083045842,-513.09374216,0.00041095,30]
[314207922,1708083045852,-500.0,0.00041095,30]
[314207923,1708083045860,-516.71461023,0.00041095,30]
[314207924,1708083045869,-516.82154099,0.00041095,30]
[314207925,1708083045878,-533.4710648,0.00041095,30]
[314207926,1708083045887,-534.5110758,0.00041095,30]
[314207927,1708083045896,-500.0,0.00041095,30]
[314207928,1708083045905,-500.86541986,0.00041095,30]
[314207929,1708083045914,-534.12977323,0.00041095,30]
[314207930,1708083045922,-545.02196339,0.00041095,30]
[314207931,1708083045932,-505.91773385,0.00041095,30]
[314207932,1708083045942,-526.41947377,0.00041095,30]
[314207933,1708083045952,-531.74186028,0.00041095,30]
[314207934,1708083045961,-529.29257346,0.00041095,30]
[314207935,1708083045970,-528.91602298,0.00041095,30]
[314207936,1708083045980,-318.85897632,0.00041095,30]
[314207937,1708083045989,-490.89099025,0.00041095,30]
[314207938,1708083045999,-523.44646167,0.00041095,30]
[314207939,1708083046008,-514.30332607,0.00041095,30]
[314207940,1708083046017,-512.26351759,0.00041095,30]
[314207941,1708083046026,-507.46544324,0.00041095,30]
[314207942,1708083046036,-598.29497004,0.00041095,30]
[314207943,1708083046045,-515.88403916,0.00041095,30]
[314207944,1708083046054,-508.03162783,0.00041095,30]
[314207945,1708083046064,-500.0,0.00041095,30]
[314207946,1708083046075,-515.26840174,0.00041095,30]
[314207947,1708083046084,-520.17218374,0.00041095,30]
[314207948,1708083046093,-521.47792226,0.00041095,30]
[314207949,1708083046102,-554.20099959,0.00041095,30]
[314207950,1708083046111,-532.28183511,0.00041095,30]
[314207951,1708083046120,-465.51146474,0.00041095,30]
[314207952,1708083046129,-510.66143901,0.00041095,30]
[314207953,1708083046138,-500.0,0.00041095,30]
[314207954,1708083046147,-523.71644145,0.00041095,30]
[314207956,1708083046156,-500.0,0.00041095,30]
[314207958,1708083046165,-514.01725901,0.00041095,30]
[314207959,1708083046174,-507.43945001,0.00041095,30]
[314207960,1708083046183,-520.50301167,0.00041095,30]
[314207961,1708083046192,-520.80093995,0.00041095,30]
[314207962,1708083046202,-594.06628057,0.00041095,30]
[314207963,1708083046212,-515.49942367,0.00041095,30]
[314207964,1708083046221,-517.64873235,0.00041095,30]
[314207965,1708083046232,-503.55455488,0.00041095,30]
[314207966,1708083046241,-510.813648,0.00041095,30]
[314207967,1708083046251,-500.0,0.00041095,30]
[314207968,1708083046260,-527.20707673,0.00041095,30]
[314207969,1708083046269,-512.20131443,0.00041095,30]
[314207970,1708083046278,-550.16690683,0.00041095,30]
[314207971,1708083046288,-531.53665813,0.00041095,30]
[314207972,1708083046298,-515.99548383,0.00041095,30]
[314207973,1708083046309,-510.87231338,0.00041095,30]
[314207974,1708083046319,-521.76431241,0.00041095,30]
[314207975,1708083046329,-513.22438257,0.00041095,2]
[314207976,1708083046338,-501.68696234,0.00041095,30]
[314207977,1708083046350,-581.45289515,0.00041095,30]
[314207978,1708083046359,-512.26889267,0.00041095,30]
[314207979,1708083046369,-526.20846195,0.00041095,30]
[314207980,1708083046378,-253.88855373,0.00041095,30]
[314207981,1708083046387,-531.47502407,0.00041095,30]
[314207982,1708083046397,-522.33479436,0.00041095,30]
[314207983,1708083046406,-523.68896912,0.00041095,30]
[314207984,1708083046415,-500.0,0.00041095,30]
[314207985,1708083046424,-507.5152377,0.00041095,30]
[314207986,1708083046434,-526.50555131,0.00041095,30]
[314207987,1708083046443,-506.15683368,0.00041095,30]
[314207988,1708083046453,-535.2045803,0.00041095,30]
[314207989,1708083046463,-516.74608323,0.00041095,30]
[314207990,1708083046472,-500.0,0.00041095,30]
[314207991,1708083046481,-500.0,0.00041095,30]
[314207992,1708083046491,-525.45589969,0.00041095,30]
[314207993,1708083046500,-500.0,0.00041095,30]
[314207994,1708083046509,-500.0,0.00041095,30]
[314207995,1708083046519,-500.0,0.00041095,30]
[314207996,1708083046528,-510.94883585,0.00041095,30]
[314207997,1708083046538,-500.0,0.00041095,30]
[314207998,1708083046547,-155.03529304,0.00041095,30]
[314207999,1708083046558,-514.32117353,0.00041095,30]
[314208000,1708083046568,-528.63576065,0.00041095,30]
[314208001,1708083046577,-505.53567464,0.00041095,30]
[314208002,1708083046586,-638.91556807,0.00041095,30]
[314208003,1708083046596,-500.0,0.00041095,30]
[314208004,1708083046608,-514.30025046,0.00041095,30]
[314208005,1708083046618,-500.0,0.00041095,30]
[314208006,1708083046627,-559.23188685,0.00041095,30]
[314208007,1708083046637,-605.77180184,0.00041095,30]
[314208008,1708083046646,-501.32688125,0.00041095,30]
[314208009,1708083046656,-518.80932567,0.00041095,30]
[314208010,1708083046665,-516.50672674,0.00041095,30]
[314208011,1708083046676,-516.96321816,0.00041095,30]
[314208012,1708083046685,-508.80446898,0.00041095,30]
[314208013,1708083046694,-513.67858646,0.00041095,30]
[314208014,1708083046703,-520.12093512,0.00041095,30]
[314208015,1708083046712,-521.55920669,0.00041095,30]
[314208016,1708083046830,-511.82429998,0.00041095,30]
[314208017,1708083046839,-534.95937268,0.00041095,30]
[314208018,1708083046849,-513.23155606,0.00041095,30]
[314208019,1708083046858,-542.17606765,0.00041095,30]
[314208020,1708083046867,-508.5259713,0.00041095,30]
[314208021,1708083046876,-500.0,0.00041095,30]
[314208022,1708083046885,-500.0,0.00041095,30]
[314208023,1708083046894,-536.22202533,0.00041095,30]
[314208024,1708083046903,-506.27117295,0.00041095,30]
[314208025,1708083046912,-516.27799854,0.00041095,30]
[314208026,1708083046921,-527.14760758,0.00041095,30]
[314208027,1708083046930,-519.17361821,0.00041095,30]
[314208028,1708083046941,-526.97552737,0.00041095,30]
[314208029,1708083046950,-530.69987512,0.00041095,30]
[314208030,1708083046960,-512.86052184,0.00041095,30]
[314208031,1708083046969,-520.39895473,0.00041095,30]
[314208032,1708083046979,-519.51711885,0.00041095,30]
[314208033,1708083046988,-500.0,0.00041095,30]
[314208034,1708083046997,-528.32624609,0.00041095,30]
[314208035,1708083047006,-511.45886209,0.00041095,30]
[314208036,1708083047014,-530.51678668,0.00041095,30]
[314208037,1708083047024,-527.67822029,0.00041095,30]
[314208038,1708083047035,-500.0,0.00041095,30]
[314208039,1708083047045,-514.04043967,0.00041095,30]
[314208040,1708083047054,-521.53372518,0.00041095,30]
[314208041,1708083047063,-506.76586465,0.00041095,30]
[314208042,1708083047072,-500.0,0.00041095,30]
[314208043,1708083047081,-509.87951082,0.00041095,30]
[314208044,1708083047090,-533.89202331,0.00041095,30]
[314208045,1708083047099,-508.53311246,0.00041095,30]
[314208046,1708083047108,-481.55762155,0.00041095,30]
[314208047,1708083047117,-500.0,0.00041095,30]
[314208048,1708083047126,-516.5457793,0.00041095,30]
[314208049,1708083047135,-563.95511759,0.00041095,30]
[314208050,1708083047144,-198.765145,0.00041095,30]
[314208051,1708083047153,-500.0,0.00041095,30]
[314208052,1708083047162,-500.0,0.00041095,30]
[314208053,1708083047171,-526.39764479,0.00041095,30]
[314208054,1708083047181,-505.41212891,0.00041095,30]
[314208055,1708083047190,-263.34810231,0.00041095,30]
[314208056,1708083047200,-500.0,0.00041095,30]
[314208057,1708083047209,-508.54383415,0.00041095,30]
[314208058,1708083047218,-549.53559489,0.00041095,30]
[314208059,1708083047227,-527.53498059,0.00041095,30]
[314208060,1708083047236,-534.46512684,0.00041095,30]
[314208061,1708083047245,-528.16775179,0.00041095,30]
[314208062,1708083047254,-500.0,0.00041095,30]
[314208063,1708083047263,-500.0,0.00041095,30]
[314208064,1708083047273,-500.0,0.00041095,30]
[314208065,1708083047283,-506.55372344,0.00041095,30]
[314208066,1708083047292,-511.70052139,0.00041095,30]
[314208067,1708083047302,-500.0,0.00041095,30]
[314208068,1708083047311,-500.0,0.00041095,30]
[314208069,1708083047320,-507.53716653,0.00041095,30]
[314208070,1708083047330,-529.0115854,0.00041095,30]
[314208071,1708083047339,-500.0,0.00041095,30]
[314208072,1708083047348,-500.0,0.00041095,30]
[314208073,1708083047358,-500.0,0.00041095,2]
[314208074,1708083047367,-523.20723884,0.00041095,30]
[314208075,1708083047376,-562.14280868,0.00041095,30]
[314208076,1708083047386,-500.0,0.00041095,30]
[314208077,1708083047395,-500.0,0.00041095,30]
[314208078,1708083047405,-522.53769616,0.00041095,30]
[314208079,1708083047414,-515.03912371,0.00041095,30]
[314208080,1708083047424,-500.0,0.00041095,30]
[314208081,1708083047433,-564.65194899,0.00041095,30]
[314208082,1708083047442,-500.0,0.00041095,2]
[314208083,1708083047451,-500.0,0.00041095,30]
[314208084,1708083047461,-500.0,0.00041095,30]
[314208085,1708083047470,-500.0,0.00041095,30]
[314208086,1708083047479,-554.76710687,0.00041095,30]
[314208087,1708083047489,-500.0,0.00041095,30]
[314208088,1708083047498,-500.0,0.00041095,30]
[314208089,1708083047508,-500.0,0.00041095,30]
[314208090,1708083047519,-626.57671358,0.00041095,30]
[314208091,1708083047528,-512.26474289,0.00041095,30]
[314208092,1708083047538,-557.89086915,0.00041095,30]
[314208093,1708083047547,-500.0,0.00041095,30]
[314208094,1708083047556,-550.79935004,0.00041095,30]
[314208095,1708083047566,-500.0,0.00041095,30]
[314208096,1708083047576,-500.0,0.00041095,30]
[314208097,1708083047585,-523.69113888,0.00041095,30]
[314208098,1708083047597,-500.0,0.00041095,30]
[314208099,1708083047610,-535.42697154,0.00041095,30]
[314208100,1708083047619,-500.0,0.00041095,30]
[314208101,1708083047629,-522.42015714,0.00041095,30]
[314208102,1708083047638,-500.0,0.00041095,30]
[314208103,1708083047647,-528.59076648,0.00041095,30]
[314208104,1708083047656,-507.63675239,0.00041095,2]
[314208105,1708083047665,-500.0,0.00041095,30]
[314208106,1708083047674,-500.0,0.00041095,30]
[314208107,1708083047684,-530.17025214,0.00041095,30]
[314208108,1708083047694,-500.0,0.00041095,2]
[314208109,1708083047703,-538.54619025,0.00041095,30]
[314208110,1708083047712,-500.0,0.00041095,30]
[314208111,1708083047721,-513.33869425,0.00041095,30]
[314208112,1708083047731,-500.0,0.00041095,7]
[314208113,1708083047740,-500.0,0.00041095,30]
[314208114,1708083047749,-525.24994433,0.00041095,30]
[314208115,1708083047758,-543.02795,0.00041095,30]
[314208116,1708083047767,-546.70981302,0.00041095,30]
[314208117,1708083047777,-500.0,0.00041095,30]
[314208118,1708083047785,-523.09586479,0.00041095,30]
[314208119,1708083047794,-533.62964253,0.00041095,30]
[314208120,1708083047804,-1000.0,0.00041095,2]
[314208121,1708083047813,-559.32622389,0.00041095,30]
[314208122,1708083047823,-500.0,0.00041095,30]
[314208123,1708083047832,-564.89469432,0.00041095,30]
[314208124,1708083047841,-246.85358127,0.00041095,30]
[314208125,1708083047850,-555.87412958,0.00041095,30]
[314208126,1708083047859,-505.72045118,0.00041095,30]
[314208127,1708083047868,-605.6995414,0.00041095,30]
[314208128,1708083047876,-514.70921375,0.00041095,30]
[314208129,1708083047885,-500.0,0.00041095,30]
[314208130,1708083047894,-500.0,0.00041095,30]
[314208131,1708083047903,-504.81100395,0.00041095,30]
[314208132,1708083047912,-531.59033274,0.00041095,30]
[314208133,1708083047921,-542.79580936,0.00041095,30]
[314208134,1708083047930,-500.0,0.00041095,30]
[314208135,1708083047940,-511.39281544,0.00041095,30]
[314208136,1708083047949,-514.93908967,0.00041095,30]
[314208137,1708083047958,-505.61348276,0.00041095,30]
[314208138,1708083047967,-562.1045642,0.00041095,30]
[314208139,1708083047977,-537.70548668,0.00041095,14]
[314208140,1708083047986,-518.11059584,0.00041095,30]
[314208141,1708083047995,-519.19866568,0.00041095,30]
[314208142,1708083048004,-544.77220991,0.00041095,30]
[314208143,1708083048014,-500.0,0.00041095,30]
[314208144,1708083048025,-596.31698387,0.00041095,30]
[314208145,1708083048036,-185.60052022,0.00041095,2]
[314208146,1708083048045,-500.0,0.00041095,30]
[314208147,1708083048055,-500.0,0.00041095,30]
[314208148,1708083048064,-522.36207732,0.00041095,30]
[314208149,1708083048073,-521.40355491,0.00041095,30]
[314208150,1708083048082,-500.0,0.00041095,30]
[314208151,1708083048091,-1000.0,0.00041095,120]
[314208152,1708083048101,-500.0,0.00041095,30]
[314208153,1708083048110,-500.0,0.00041095,30]
[314208154,1708083048119,-486.25242638,0.00041095,30]
[314208155,1708083048129,-512.2829418,0.00041095,30]
[314208156,1708083048138,-500.0,0.00041095,30]
[314208157,1708083048147,-500.0,0.00041095,30]
[314208158,1708083048157,-522.39645952,0.00041095,30]
[314208159,1708083048167,-500.0,0.00041095,30]
[314208160,1708083048176,-549.97270574,0.00041095,30]
[314208161,1708083048185,-500.0,0.00041095,30]
[314208162,1708083048195,-528.42495956,0.00041095,30]
[314208163,1708083048205,-505.79144142,0.00041095,30]
[314208164,1708083048213,-546.93725848,0.00041095,30]
[314208165,1708083048222,-538.84342157,0.00041095,30]
[314208166,1708083048232,-506.92264094,0.00041095,30]
[314208167,1708083048241,-569.75041604,0.00041095,30]